[Event "Prague Festival-Masters 2022"]
[Site "Prague"]
[Date "2022.06.14"]
[Round "6.2"]
[White "Navara, David"]
[Black "Vidit, Santosh Gujrathi"]
[Result "1/2-1/2"]
[ECO "C42"]
[WhiteElo "2682"]
[BlackElo "2723"]
[Annotator "TA"]
[PlyCount "75"]
[EventDate "2022.06.07"]
[EventType "tourn"]
[EventCountry "CZE"]
[SourceTitle "playchess.com"]
[Source "ChessBase"]
[SourceQuality "1"]
[TimeControl "40/5400+30:1800+30"]

{[%evp 25,75,16,19,17,10,21,18,21,19,10,0,7,6,0,1,0,0,0,0,0,14,14,18,0,0,0,0,0,0,0,0,0,0,0,0,0,0,0,0,0,0,0,0,0,0,0,0,0,0,0,0,0]} 1. e4 {[%emt 0:00:03]} e5 {[%emt 0:00:43]} 2. Nf3 {[%emt 0:00:03]} Nf6 {[%emt 0:00:10]} 3. Nxe5 {[%emt 0:00:04]} d6 {[%emt 0:00:07]} 4. Nf3 {[%emt 0:00:03]} Nxe4 {[%emt 0:00:08]} 5. d4 {[%emt 0:00:05]} d5 {[%emt 0:00:09]} 6. Bd3 {[%emt 0:00:06]} Bd6 {[%emt 0:00:23]} 7. O-O {[%emt 0:00:10]} O-O {[%emt 0:00:08]} 8. c4 {[%emt 0:00:22]} c6 {[%emt 0:00:07]} 9. cxd5 {[%emt 0:01:00]} cxd5 {[%emt 0:00:08]} 10. Nc3 {[%emt 0:00:20]} Re8 {[%emt 0:00:46]} 11. Re1 {[%emt 0:00:17]} Nxc3 {[%emt 0:00:44]} 12. Rxe8+ {[%emt 0:01:56]} Qxe8 {[%emt 0:00:06]} 13. bxc3 {[%emt 0:00:08]} Nd7 {[%emt 0:00:39] The position is equal.} 14. Qb3 {[%emt 0:00:15] C42: Petroff Defence: 3 Nxe5 and unusual White 3rd moves.} Nb6 {[%emt 0:00:12]} 15. Ba3 {[%emt 0:00:10]} Bxa3 {[%emt 0:01:00]} 16. Qxa3 {[%emt 0:00:07]} h6 {[%emt 0:22:23] [#]} 17. h3 $146 {[%emt 0:33:11]} (17. Ne5 {seems wilder.} Be6 18. Re1 Nd7 19. f4) ({Predecessor:} 17. Re1 Be6 18. h3 Qa4 19. Qd6 Qd7 20. Qg3 Re8 21. Ne5 Qc7 22. Bc2 Rc8 23. Qd3 {½-½ (37) Canamas Soler,J (2367)-Taffijn,M (2126) ICCF email 2020}) 17... Be6 {[%emt 0:01:25]} 18. Rb1 {[%emt 0:06:19]} Qf8 {[%emt 0:25:10]} 19. Qa5 {[%emt 0:00:54]} Qc8 {[%emt 0:01:04]} 20. Ne5 {[%emt 0:15:14]} Nd7 {[%emt 0:01:12]} 21. f4 {[%emt 0:01:44]} b6 {[%emt 0:06:16]} 22. Qa3 {[%emt 0:02:09]} Nxe5 {[%emt 0:02:55]} 23. fxe5 {[%emt 0:00:55]} Qf8 {[%emt 0:13:41]} 24. Qxf8+ {[%emt 0:06:14]} Kxf8 $11 {[%emt 0:00:05][%mdl 4096] Endgame KRB-KRB} 25. Kf2 {[%emt 0:09:07]} Rc8 {[%emt 0:00:31]} 26. Rc1 {[%emt 0:00:45]} Ke7 {[%emt 0:00:20]} 27. Ke3 {[%emt 0:00:17]} f6 {[%emt 0:01:05]} 28. exf6+ {[%emt 0:01:39]} Kxf6 {[%emt 0:00:02]} 29. h4 {[%emt 0:00:16]} Ke7 {[%emt 0:01:10]} 30. Kd2 {[%emt 0:00:30]} Rf8 {[%emt 0:00:25]} 31. Rf1 {[%emt 0:01:04] Prevents Rf2+.} Rxf1 {[%emt 0:02:57]} 32. Bxf1 {[%emt 0:00:10] KB-KB} Kf6 {[%emt 0:03:19]} 33. Ke3 {[%emt 0:00:21]} Bf5 {[%emt 0:03:02]} 34. g3 {[%emt 0:00:42]} Be6 {[%emt 0:02:53]} 35. Bg2 {[%emt 0:00:33]} g5 {[%emt 0:00:09]} 36. a3 {[%emt 0:00:32]} Ke7 {[%emt 0:00:29]} 37. hxg5 {[%emt 0:00:11]} hxg5 {[%emt 0:00:02]} 38. Bf1 {[%emt 0:00:24] A balanced but interesting game.  Weighted Error Value: White=0.01 (flawless) /Black=0.01 (flawless)} 1/2-1/2

[Event "Prague Festival-Masters 2022"]
[Site "Prague"]
[Date "2022.06.14"]
[Round "6.3"]
[White "Nguyen, Thai Dai Van"]
[Black "Harikrishna, Pentala"]
[Result "1/2-1/2"]
[ECO "C93"]
[WhiteElo "2612"]
[BlackElo "2705"]
[Annotator "TA"]
[PlyCount "103"]
[EventDate "2022.06.07"]
[EventType "tourn"]
[EventCountry "CZE"]
[SourceTitle "playchess.com"]
[Source "ChessBase"]
[SourceQuality "1"]
[TimeControl "40/5400+30:1800+30"]

{[%evp 34,103,31,25,39,6,34,32,47,37,51,46,50,40,100,88,96,97,83,87,119,112,107,110,136,116,139,139,142,133,154,154,145,132,145,0,145,143,141,140,148,104,139,91,124,104,100,88,98,97,104,40,52,47,47,44,43,31,34,26,28,33,28,22,23,0,0,0,0,0,0,0]} 1. e4 {[%emt 0:00:06]} e5 {[%emt 0:00:05]} 2. Nf3 {[%emt 0:00:21]} Nc6 {[%emt 0:00:05]} 3. Bb5 {[%emt 0:00:34]} a6 {[%emt 0:00:46]} 4. Ba4 {[%emt 0:00:10]} Nf6 {[%emt 0:00:08]} 5. O-O {[%emt 0:00:14]} Be7 {[%emt 0:00:25]} 6. Re1 {[%emt 0:00:15]} b5 {[%emt 0:00:21]} 7. Bb3 {[%emt 0:00:08]} O-O {[%emt 0:00:51]} 8. h3 {[%emt 0:00:18]} d6 {[%emt 0:02:31]} 9. c3 {[%emt 0:00:32]} Bb7 {[%emt 0:00:54]} 10. d4 {[%emt 0:00:21]} Re8 {[%emt 0:01:22]} 11. Ng5 {[%emt 0:04:14]} Rf8 {[%emt 0:00:30]} 12. Nf3 {[%emt 0:00:07]} Re8 {[%emt 0:00:42]} 13. Nbd2 {[%emt 0:00:12]} Bf8 {[%emt 0:01:21]} 14. a3 {[%emt 0:00:39][%cal Ba2a3,Ba3a4][%mdl 32]} h6 {[%emt 0:04:52]} 15. Bc2 {[%emt 0:01:57][%cal Bb3c2,Bc2d3,Bd3f1][%mdl 32]} Nb8 {[%emt 0:03:12]} 16. b3 {[%emt 0:09:07]} Nbd7 {[%emt 0:01:02]} 17. Bb2 {[%emt 0:01:18]} g6 {[%emt 0:14:27]} 18. a4 {[%emt 0:00:51]} Bg7 {[%emt 0:01:49] C93: Closed Ruy Lopez: Smyslov Variation.} 19. Bd3 {[%emt 0:08:44]} c6 {[%emt 0:00:28]} (19... Bc6 {keeps more tension.} 20. b4 d5 21. dxe5 Nxe4 22. axb5 axb5 23. Nd4 Rxa1 24. Bxa1 Nxe5 25. Nxc6 Nxc6 26. Nxe4 dxe4 27. Bxb5 Qxd1 28. Rxd1 Rd8) 20. Qc2 {[%emt 0:03:38]} Rc8 {[%emt 0:03:34] White is slightly better.} 21. Bf1 {[%emt 0:19:30]} Qc7 {[%emt 0:05:36]} 22. axb5 {[%emt 0:03:23]} axb5 {[%emt 0:00:28]} 23. b4 {[%emt 0:04:14] [#]} Nb6 $146 {[%emt 0:14:16]} (23... Kh7 $14) ({Predecessor:} 23... Kh7 24. Rad1 d5 25. exd5 cxd5 26. Bxb5 e4 27. Nh2 Qb6 28. Ba4 Bc6 29. Bxc6 Qxc6 30. Nb3 Nh5 31. Nc5 Qc7 {½-½ (36) Schreiber,E (2327)-Elyakim,D (2512) ICCF email 2018}) 24. dxe5 $1 $16 {[%emt 0:02:56]} dxe5 {[%emt 0:00:06]} 25. c4 {[%emt 0:00:39]} bxc4 {[%emt 0:00:17]} 26. Nxc4 {[%emt 0:00:13]} Nfd7 {[%emt 0:01:02]} 27. Na5 {[%emt 0:07:44]} Ba8 {[%emt 0:07:43]} 28. Rec1 {[%emt 0:01:37]} Re6 {[%emt 0:05:48]} 29. Qb3 {[%emt 0:06:05]} Qd8 {[%emt 0:02:49]} 30. Qe3 {[%emt 0:00:58] Inhibits c5.} Rb8 {[%emt 0:06:43]} 31. Nb3 {[%emt 0:04:55] 0x0.00222890e13edp-1022s more active pieces.} Re8 {[%emt 0:02:57]} 32. Bc3 {[%emt 0:03:16]} Bb7 {[%emt 0:02:56]} 33. Na5 {[%emt 0:00:36]} Ba8 {[%emt 0:02:11]} 34. Nb3 {[%emt 0:03:23]} Bb7 {[%emt 0:00:09]} 35. Rd1 {[%emt 0:01:06]} Ra8 {[%emt 0:07:57]} 36. Rxa8 {[%emt 0:03:36]} Qxa8 {[%emt 0:01:08]} 37. Na5 {[%emt 0:02:58]} Qc8 {[%emt 0:03:46]} 38. Ra1 {[%emt 0:02:17]} (38. h4 $142) 38... Qc7 {[%emt 0:00:52]} 39. Nxb7 {[%emt 0:03:16]} Qxb7 {[%emt 0:00:06]} 40. Nd2 {[%emt 0:00:00]} Ra8 {[%emt 0:00:00]} 41. Ra5 {[%emt 0:02:38]} c5 {[%emt 0:07:43] [#]} 42. Rxa8+ {[%emt 0:07:48]} ({Better is} 42. b5 $1 $16) 42... Qxa8 $14 {[%emt 0:01:03]} 43. bxc5 {[%emt 0:00:07]} Na4 {[%emt 0:00:11]} 44. Bb4 {[%emt 0:10:19] Threatens to win with Bb5.} Qc6 {[%emt 0:02:47] Inhibits Bb5.} 45. Bc4 {[%emt 0:02:22] aiming for Bd5.} Naxc5 {[%emt 0:00:46]} 46. Bd5 {[%emt 0:00:06] A strong pair of Bishops.} Qb6 {[%emt 0:04:38]} 47. Qc3 {[%emt 0:01:36]} Bf8 {[%emt 0:03:18]} 48. Qc4 {[%emt 0:02:30]} Qf6 {[%emt 0:02:15]} 49. Qb5 {[%emt 0:01:30]} Nd3 {[%emt 0:03:34] The position is equal.} 50. Nf3 {[%emt 0:03:07] Bxf8 is the strong threat.} Nxb4 {[%emt 0:00:55]} 51. Qxd7 {[%emt 0:00:06]} Nxd5 {[%emt 0:00:39]} 52. Qxd5 {[%emt 0:00:04] White really could win this.  Weighted Error Value: White=0.12 (very precise) /Black=0.10 (very precise)} 1/2-1/2

[Event "Prague Festival-Masters 2022"]
[Site "Prague"]
[Date "2022.06.14"]
[Round "6.4"]
[White "Anton Guijarro, David"]
[Black "Shankland, Sam"]
[Result "1/2-1/2"]
[ECO "B53"]
[WhiteElo "2691"]
[BlackElo "2718"]
[Annotator "TA"]
[PlyCount "118"]
[EventDate "2022.06.07"]
[EventType "tourn"]
[EventCountry "CZE"]
[SourceTitle "playchess.com"]
[Source "ChessBase"]
[SourceQuality "1"]
[TimeControl "40/5400+30:1800+30"]

{[%evp 9,118,9,24,0,29,22,14,16,18,11,15,6,7,0,12,0,16,-18,-20,-11,-18,-21,-21,-27,-27,-20,0,0,22,0,0,0,15,0,0,0,0,0,0,0,0,0,0,0,0,0,0,0,0,0,0,0,0,0,0,0,14,14,17,17,17,17,18,18,13,11,20,18,16,16,25,25,29,25,24,25,51,51,57,46,70,47,53,23,23,16,32,8,8,0,6,0,20,0,9,0,14,0,0,0,0,0,0,0,0,0,0,0,0,0,0]} 1. e4 {[%emt 0:00:06]} c5 {[%emt 0:00:12]} 2. Nf3 {[%emt 0:00:18]} d6 {[%emt 0:00:05]} 3. d4 {[%emt 0:00:41]} cxd4 {[%emt 0:00:05]} 4. Qxd4 {[%emt 0:00:09]} Nf6 {[%emt 0:00:14]} 5. Nc3 {[%emt 0:00:39]} Nc6 {[%emt 0:00:48]} 6. Qd3 {[%emt 0:00:34] B53: Sicilian: 2...d6: Lines with Qxd4.} Bd7 {[%emt 0:06:56] [#]} 7. Nd5 $146 {[%emt 0:20:53]} ({Predecessor:} 7. Bg5 a6 8. O-O-O g6 9. Bxf6 exf6 10. Kb1 Rc8 11. g3 Be6 12. h4 Qa5 13. a3 {½-½ (73) Apurwa,S-Agrawal,A Chess.com INT 2021}) 7... e6 {[%emt 0:07:10]} 8. Nxf6+ {[%emt 0:00:09]} Qxf6 {[%emt 0:00:08]} 9. Be2 {[%emt 0:03:17]} Be7 {[%emt 0:02:49]} 10. O-O {[%emt 0:04:53]} Qg6 {[%emt 0:02:43] Prevents Bg5.} 11. c3 {[%emt 0:06:09]} O-O {[%emt 0:03:44]} 12. Nd2 {[%emt 0:16:11]} Rad8 {[%emt 0:10:56]} 13. f4 {[%emt 0:01:30]} d5 {[%emt 0:02:41]} 14. f5 {[%emt 0:06:14]} exf5 {[%emt 0:00:13]} 15. exf5 {[%emt 0:00:40]} Qd6 {[%emt 0:02:22]} 16. Nb3 {[%emt 0:01:02]} Bf6 {[%emt 0:03:19]} 17. Bf4 {[%emt 0:01:47]} Be5 {[%emt 0:03:59]} 18. Bxe5 {[%emt 0:00:21]} Nxe5 {[%emt 0:00:34]} 19. Qg3 {[%emt 0:01:02]} Qf6 {[%emt 0:01:19]} 20. Qf2 {[%emt 0:04:49]} b6 {[%emt 0:05:03]} 21. Nd4 {[%emt 0:02:08]} Rfe8 {[%emt 0:01:25]} 22. Rad1 {[%emt 0:04:05]} h6 {[%emt 0:03:15]} 23. h3 {[%emt 0:02:28]} Nc4 {[%emt 0:04:53]} 24. Bxc4 {[%emt 0:01:42]} dxc4 {[%emt 0:00:02]} 25. Rde1 {[%emt 0:00:44]} Bc6 {[%emt 0:06:40]} 26. Qf4 {[%emt 0:03:42]} Ba8 {[%emt 0:01:40]} 27. Re3 {[%emt 0:02:03]} Qg5 {[%emt 0:03:01]} 28. Qxg5 {[%emt 0:00:57] Active counter play!} hxg5 {[%emt 0:00:02]} 29. Rfe1 {[%emt 0:00:56]} Kf8 {[%emt 0:02:07]} 30. Kf2 {[%emt 0:00:38]} Rxe3 {[%emt 0:02:31]} 31. Rxe3 $11 {[%emt 0:00:04][%mdl 4096] Endgame KRB-KRN} Rd5 {[%emt 0:01:54]} 32. g4 {[%emt 0:06:47]} Bb7 {[%emt 0:01:28]} 33. Kg3 {[%emt 0:00:40]} f6 {[%emt 0:02:11]} 34. h4 {[%emt 0:01:00]} gxh4+ {[%emt 0:00:56]} 35. Kxh4 {[%emt 0:00:04]} Kf7 {[%emt 0:01:05]} 36. Kg3 {[%emt 0:05:28]} Bc8 {[%emt 0:01:44]} 37. Kf4 {[%emt 0:00:52]} Bd7 {[%emt 0:01:14]} 38. Rh3 {[%emt 0:01:12]} Kg8 {[%emt 0:01:58]} 39. a3 {[%emt 0:01:40]} a5 {[%emt 0:00:46]} 40. Rh1 {[%emt 0:00:00]} b5 {[%emt 0:00:00]} 41. g5 {[%emt 0:07:24]} fxg5+ {[%emt 0:13:18]} 42. Kxg5 {[%emt 0:00:05]} Re5 {[%emt 0:01:32]} 43. Kf4 {[%emt 0:02:15]} Rc5 {[%emt 0:04:06]} 44. Rg1 {[%emt 0:06:13]} Kf7 {[%emt 0:00:44]} 45. Rg5 {[%emt 0:02:42][%cal Od4e6] [#] And now Ne6! would win.} Rd5 {[%emt 0:02:46]} 46. Ke4 {[%emt 0:01:04]} (46. Nf3 $5 {[%cal Rf3e5]}) 46... Rd6 {[%emt 0:00:48]} 47. Rg2 {[%emt 0:13:16]} Rh6 {[%emt 0:02:26]} 48. Ke5 {[%emt 0:00:44]} (48. Kd5 $5 {[%cal Rd4e6]}) 48... Rh5 {[%emt 0:01:15] The position is equal.} 49. Kf4 {[%emt 0:00:09]} Rh1 {[%emt 0:03:40]} 50. Ke5 {[%emt 0:01:33] Black should prevent Ne6.} Rh5 {[%emt 0:00:18]} 51. Kf4 {[%emt 0:00:38]} Rh1 {[%emt 0:00:05]} 52. Ke4 {[%emt 0:00:58]} Rh5 {[%emt 0:02:13]} 53. Ke5 {[%emt 0:00:45]} Bxf5 {[%emt 0:02:40]} 54. Nxf5 {[%emt 0:00:21] KRN-KR} g6 {[%emt 0:00:00][%mdl 64] [#] Pin} 55. Rf2 {[%emt 0:00:10][%cal Oe5e4] Hoping for Ke4!} Ke8 $1 {[%emt 0:00:04]} 56. Ke4 {[%emt 0:00:35] Strongly threatening Ng7+.} gxf5+ {[%emt 0:02:02]} 57. Rxf5 {[%emt 0:00:15]} Rxf5 {[%emt 0:00:22]} 58. Kxf5 {[%emt 0:00:05] Ke6 would kill now.} Kd7 {[%emt 0:00:03]} 59. Ke5 {[%emt 0:00:54] Intending Kd5 and mate.} Kc6 {[%emt 0:00:04] Weighted Error Value: White=0.06 (flawless) /Black=0.04 (flawless)} 1/2-1/2

[Event "Prague Festival-Masters 2022"]
[Site "Prague"]
[Date "2022.06.14"]
[Round "6.5"]
[White "Maghsoodloo, Parham"]
[Black "Vallejo Pons, Francisco"]
[Result "1-0"]
[ECO "C02"]
[WhiteElo "2699"]
[BlackElo "2704"]
[Annotator "TA"]
[PlyCount "157"]
[EventDate "2022.06.07"]
[EventType "tourn"]
[EventCountry "CZE"]
[SourceTitle "playchess.com"]
[Source "ChessBase"]
[SourceQuality "1"]
[TimeControl "40/5400+30:1800+30"]

{[%evp 12,157,4,0,0,-3,3,0,7,0,14,0,0,0,0,-8,0,-5,-8,-12,-16,-22,0,-7,0,0,0,0,0,0,0,-6,0,0,0,0,27,14,24,0,29,16,22,15,58,0,0,0,1,0,0,0,0,0,0,0,33,62,69,75,69,83,71,79,87,83,87,87,87,87,86,87,72,38,56,38,40,51,57,46,207,199,198,193,189,183,292,279,258,163,134,0,0,0,40,0,0,0,484,484,466,429,345,0,704,683,4133,29937,29940,29946,29946,29947,29941,29939,29955,29953,29956,29957,29958,29956,29956,29952,29953,29953,29950,0,29958,29960,29958,29961,29960,29962,29961,29960,29962,29963,29964,29966,29966,29967,29968,29971,29966,11948,29986,29987,29987,29988]} 1. e4 {[%emt 0:00:04]} e6 {[%emt 0:00:08]} 2. d4 {[%emt 0:00:05]} d5 {[%emt 0:00:03]} 3. e5 {[%emt 0:00:08]} c5 {[%emt 0:00:04]} 4. c3 {[%emt 0:00:04]} Nc6 {[%emt 0:00:49]} 5. Nf3 {[%emt 0:00:06]} Bd7 {[%emt 0:00:39]} 6. Be2 {[%emt 0:01:03]} Nge7 {[%emt 0:01:18]} 7. Na3 {[%emt 0:07:16]} Nf5 {[%emt 0:02:05] C02: French: Advance Variation.} 8. Nc2 {[%emt 0:00:35]} Be7 {[%emt 0:00:41]} 9. O-O {[%emt 0:01:41]} (9. dxc5 {looks sharper.} Bxc5 10. O-O Nh4 11. Bf4) 9... cxd4 {[%emt 0:08:46] The position is equal.} 10. cxd4 {[%emt 0:00:53]} O-O {[%emt 0:01:05] 10...h5 is not played anymore.} 11. g4 {[%emt 0:06:48] [#]} Nh6 $146 {[%emt 0:04:19]} ({Predecessor:} 11... Nh4 12. Nxh4 Bxh4 13. f4 Be7 14. Be3 f6 15. Bd3 Rc8 16. exf6 gxf6 17. g5 Rf7 {0-1 (65) Drazic,S (2310)-Nitish,B (2449) Novi Sad 2022}) 12. h3 {[%emt 0:09:28]} f6 {[%emt 0:00:45]} 13. exf6 {[%emt 0:08:44]} Rxf6 {[%emt 0:01:28]} 14. Nce1 {[%emt 0:00:20]} Rf8 {[%emt 0:24:21]} 15. Nd3 {[%emt 0:01:45]} Nf7 {[%emt 0:05:23]} 16. Be3 {[%emt 0:00:58]} Bd6 {[%emt 0:02:25]} 17. Qd2 {[%emt 0:03:45]} Kh8 {[%emt 0:07:22]} 18. Rac1 {[%emt 0:16:49]} a5 {[%emt 0:02:39]} 19. Kg2 {[%emt 0:04:21]} Qf6 {[%emt 0:02:56]} 20. Nc5 {[%emt 0:03:04]} Bxc5 {[%emt 0:00:37]} 21. Rxc5 {[%emt 0:02:03]} Nd6 {[%emt 0:01:23]} 22. Qd1 {[%emt 0:04:50]} Be8 {[%emt 0:05:29][%cal Bd7e8,Be8g6,Bg6h5][%mdl 32]} 23. Bg5 {[%emt 0:07:16]} Qg6 {[%emt 0:01:21][%cal Of8f3]} (23... Qf7 $5 {[%cal Rd6e4]}) 24. Bd3 {[%emt 0:00:18]} Ne4 {[%emt 0:02:29]} 25. Be3 {[%emt 0:01:43]} Qf6 $1 {[%emt 0:02:51] Inhibits Ne5.} 26. Bxe4 {[%emt 0:04:04]} dxe4 {[%emt 0:00:04]} 27. Ng5 {[%emt 0:00:05]} Bg6 {[%emt 0:08:25] [#]} 28. h4 {[%emt 0:01:50]} (28. Nxe6 $1 $14 Qxe6 29. d5) 28... h6 $11 {[%emt 0:07:01]} 29. h5 {[%emt 0:05:30]} Bxh5 {[%emt 0:00:40]} 30. Nxe4 {[%emt 0:04:47]} Qg6 {[%emt 0:00:33][%csl LRe4,LRg4]} 31. Ng5 $1 $36 {[%emt 0:00:01][%mdl 2048] White is more active.} (31. f3 $2 Bxg4 $1 {[%mdl 512]} 32. Ng3 Bf5 $19) 31... hxg5 {[%emt 0:01:24]} 32. Rh1 {[%emt 0:00:43][%mdl 64] Pin} Qe4+ {[%emt 0:01:33]} 33. Kg3 $1 {[%emt 0:00:01]} Kg8 {[%emt 0:01:57]} 34. Rxh5 {[%emt 0:00:03]} Rad8 {[%emt 0:01:12]} 35. Qh1 $1 {[%emt 0:00:12] Dancing on a razor blade.} Qxh1 {[%emt 0:02:20]} 36. Rxh1 {[%emt 0:00:05]} Nxd4 {[%emt 0:00:32]} 37. Rxa5 {[%emt 0:01:10]} (37. Bxg5 Ne2+ 38. Kh4 Rd5 $11) 37... Ne2+ {[%emt 0:00:25]} 38. Kh2 $1 {[%emt 0:00:34]} Rd5 {[%emt 0:00:36]} 39. Rxd5 {[%emt 0:04:04]} exd5 $16 {[%emt 0:00:02][%mdl 4096] Endgame KRB-KRN} 40. Re1 $1 {[%emt 0:00:00]} (40. Bxg5 $6 Rxf2+ 41. Kh3 Rf3+ 42. Kg2 Rg3+ 43. Kf2 Rxg4 $11) 40... Nf4 {[%emt 0:00:00]} 41. Kg3 {[%emt 0:04:48]} Rc8 {[%emt 0:10:48]} 42. Rd1 {[%emt 0:06:57]} Kf7 $1 {[%emt 0:03:31]} 43. Kf3 {[%emt 0:00:05]} Ke6 $1 {[%emt 0:15:14]} 44. Rd4 {[%emt 0:01:42]} Ke5 $1 {[%emt 0:00:06]} 45. Rb4 {[%emt 0:00:05]} Rh8 $2 {[%emt 0:01:34]} (45... Rf8 $1 $14 46. Rxb7 (46. Bd4+ Kd6 $14) 46... d4) 46. Bxf4+ $18 {[%emt 0:02:26]} ({Worse is} 46. Bd4+ Kd6 47. Ke3 (47. Rb6+ Kc7 $17) 47... Re8+ 48. Kd2 Ne6 $11) 46... gxf4 {[%emt 0:00:03]} 47. Rxb7 {[%emt 0:00:20] KR-KR} g5 {[%emt 0:00:05]} 48. a4 {[%emt 0:03:26][%cal Ba2a4,Ba4a5][%mdl 32]} Rh1 {[%emt 0:02:40]} (48... Ra8 $142) 49. a5 {[%emt 0:08:59] Strongly threatening a6.} Ra1 {[%emt 0:00:10]} 50. Rb5 {[%emt 0:03:25]} Kd4 {[%emt 0:01:05]} 51. b3 {[%emt 0:00:01]} ({White should play} 51. Rb4+ $1 $16 Ke5 52. Rb5) 51... Ra2 {[%emt 0:01:17]} 52. Kg2 {[%emt 0:00:15] Black must now prevent Rb4+.} Ra3 {[%emt 0:00:58]} 53. b4 {[%emt 0:01:37][%cal Bb3b4,Bb4b5][%mdl 32]} Ra4 {[%emt 0:00:09]} ({But not} 53... Kc4 54. Rc5+ Kd4 55. Rc6 $16) 54. Rb6 {[%emt 0:00:16] Hoping for a6.} Kc4 $2 {[%emt 0:00:56][%mdl 8192] White stays focused until the end.} (54... Kc3 $1 $11 {and Black is okay.}) 55. a6 $1 {[%emt 0:00:40]} d4 {[%emt 0:00:09]} 56. b5 $1 {[%emt 0:00:22]} d3 {[%emt 0:00:11]} 57. Kf3 $2 {[%emt 0:02:37]} (57. Rd6 $18) 57... Ra1 $2 {[%emt 0:00:36][%mdl 8192]} (57... Kc5 $11 58. Rg6 Kxb5) 58. Rd6 {[%emt 0:00:15] And now Rd8 would win.} Kxb5 {[%emt 0:01:08]} 59. Rxd3 {[%emt 0:00:57]} Kc6 {[%emt 0:00:11] [#] Prevents Rd6+.} 60. Ke4 $1 {[%emt 0:00:22]} Rxa6 {[%emt 0:00:24] [#]} 61. Kf5 $1 {[%emt 0:00:49]} Ra5+ {[%emt 0:00:26]} 62. Kf6 {[%emt 0:00:17]} Kc7 {[%emt 0:00:41]} 63. Rd4 {[%emt 0:01:04]} Rb5 {[%emt 0:00:35]} 64. f3 {[%emt 0:01:19]} Ra5 {[%emt 0:00:16]} 65. Rd3 {[%emt 0:01:20]} Rb5 {[%emt 0:00:05]} 66. Kg6 {[%emt 0:00:40]} Re5 {[%emt 0:00:30]} 67. Rd4 {[%emt 0:00:41]} Rc5 {[%emt 0:00:18]} 68. Kf6 $2 {[%emt 0:00:23]} (68. Rd1 {mates} Rb5 69. Kf6 Ra5 70. Re1 Ra3 71. Kxg5 Rxf3 72. Re4 Kd6 73. Rxf4) 68... Rb5 $2 {[%emt 0:00:09][%mdl 8192]} (68... Ra5 $11) 69. Re4 {[%emt 0:00:06]} Kd6 {[%emt 0:01:40]} 70. Re6+ {[%emt 0:00:11]} Kd7 {[%emt 0:00:07]} 71. Re5 {[%emt 0:00:54]} Rb3 {[%emt 0:00:11]} 72. Kxg5 {[%emt 0:00:03]} Rxf3 {[%emt 0:00:04]} 73. Re4 {[%emt 0:00:04]} Re3 {[%emt 0:01:41]} 74. Rxf4 {[%emt 0:00:13]} Ke8 {[%emt 0:00:40]} 75. Kg6 {[%emt 0:00:19]} Re7 {[%emt 0:00:34]} 76. g5 {[%emt 0:00:13]} Ra7 {[%emt 0:00:22]} 77. Kh6 {[%emt 0:00:07] White threatens g6 and mate.} Rf7 {[%emt 0:00:39]} 78. Rxf7 {[%emt 0:00:07]} Kxf7 {[%emt 0:00:05]} 79. Kh7 {[%emt 0:00:03] Weighted Error Value: White=0.13 (very precise) /Black=0.25 (precise)} 1-0

[Event "Prague Festival-Masters 2022"]
[Site "Prague"]
[Date "2022.06.15"]
[Round "7.1"]
[White "Harikrishna, Pentala"]
[Black "Le, Quang Liem"]
[Result "1/2-1/2"]
[ECO "E48"]
[WhiteElo "2705"]
[BlackElo "2709"]
[Annotator "TA"]
[PlyCount "56"]
[EventDate "2022.06.07"]
[EventType "tourn"]
[EventCountry "CZE"]
[SourceTitle "playchess.com"]
[Source "ChessBase"]
[SourceQuality "1"]
[TimeControl "40/5400+30:1800+30"]

{[%evp 13,56,-4,-1,0,0,0,-5,-15,-19,-20,0,-27,-16,-49,18,12,13,10,28,16,31,31,30,24,25,21,72,60,71,71,81,75,85,78,75,75,66,0,0,0,67,0,0,0,58]} 1. d4 {[%emt 0:00:03]} Nf6 {[%emt 0:00:12]} 2. c4 {[%emt 0:00:07]} e6 {[%emt 0:00:09]} 3. Nc3 {[%emt 0:00:04]} Bb4 {[%emt 0:00:12]} 4. e3 {[%emt 0:00:07]} O-O {[%emt 0:00:10]} 5. Bd3 {[%emt 0:00:04]} d5 {[%emt 0:00:15]} 6. cxd5 {[%emt 0:00:06]} exd5 {[%emt 0:00:09]} 7. Nge2 {[%emt 0:00:20]} Re8 {[%emt 0:00:26]} 8. Bd2 {[%emt 0:00:19] E48: Nimzo-Indian: Rubinstein: 5 Bd3 d5 including 6 Ne2, but excluding 6 a3.} Bd6 {[%emt 0:02:20]} 9. Qc2 {[%emt 0:01:32]} Na6 {[%emt 0:10:13]} 10. a3 {[%emt 0:01:44] Against Nb4} c5 {[%emt 0:00:16] [#]} 11. f3 $146 {[%emt 0:11:48]} ({Predecessor:} 11. Bb5 Bd7 12. Bxd7 Qxd7 13. dxc5 Nxc5 14. O-O Rac8 15. Rfd1 Qg4 16. h3 Qh5 17. Be1 {0-1 (46) Agdestein,S (2586)-Ghosh,D (2556) Chess.com INT 2018}) 11... Nc7 {[%emt 0:03:21]} 12. O-O {[%emt 0:03:10]} b6 {[%emt 0:04:52]} 13. Rad1 {[%emt 0:04:52]} Ba6 {[%emt 0:06:42]} (13... Bb7 $15) 14. Bxa6 $11 {[%emt 0:05:02]} Nxa6 {[%emt 0:00:09]} 15. Kh1 {[%emt 0:04:40]} Qc8 {[%emt 0:10:17]} 16. Qd3 {[%emt 0:21:37]} (16. e4 {with more complications.} dxe4 17. Bg5 exf3 18. Rxf3 Ng4 19. h3) 16... Nc7 {[%emt 0:03:10]} 17. e4 {[%emt 0:03:20] Strongly threatening e5.} dxe4 {[%emt 0:07:26]} 18. fxe4 {[%emt 0:01:11] Black must now prevent e5.} cxd4 {[%emt 0:05:02]} 19. Nxd4 {[%emt 0:00:06][%cal Be2d4,Bd4f5,Bf5h4][%mdl 32] Black should prevent Bg5.} Qg4 {[%emt 0:09:41] [#] Inhibits Bg5.} (19... Ne6 $11 {keeps the balance.}) 20. Rxf6 $1 $16 {[%emt 0:15:56]} gxf6 {[%emt 0:00:09]} 21. Nf5 {[%emt 0:00:04]} Bf8 {[%emt 0:00:22] [#]} 22. h3 $1 {[%emt 0:01:23][%mdl 1024] White has strong compensation.} Qg6 {[%emt 0:00:13]} 23. Nh4 $36 {[%emt 0:06:09][%mdl 2048] White has strong initiative. 0x0.001762822ac6dp-1022s more active pieces. Pair of Knights!} Rad8 {[%emt 0:04:43] [#]} 24. Qf3 {[%emt 0:05:09]} ({Reject} 24. Qxd8 $6 Rxd8 25. Nxg6 fxg6 $11) 24... Qg7 {[%emt 0:00:09]} 25. Nf5 {[%emt 0:02:08]} Qg6 {[%emt 0:00:07]} 26. Nh4 {[%emt 0:00:41]} Qg7 {[%emt 0:00:07][%cal Of6f5]} 27. Nf5 {[%emt 0:00:08]} Qg6 {[%emt 0:00:08]} 28. Nh4 {[%emt 0:00:04]} Qg7 {Weighted Error Value: White=0.10 (very precise) /Black=0.14 (very precise)} 1/2-1/2